fUST/lending_fUST_20240925
["ID","MTS","AMOUNT","RATE_DAILY","PERIOD"]
[339078493,1727209840925,-1000.0,0.00020521,2]
[339078494,1727209840934,-174.0789693,0.00020521,2]
[339078495,1727209840944,-505.61499426,0.00020521,2]
[339078496,1727209840953,-500.0,0.00020557,2]
[339078497,1727209840961,-500.0,0.00020638,2]
[339078498,1727209840971,-500.0,0.0002065,2]
[339078499,1727209840980,-500.0,0.0002065,2]
[339078500,1727209840989,-606.96312189,0.0002065,2]
[339078501,1727209840998,-300.35288752,0.0002065,2]
[339078502,1727209841007,-1152.0,0.00020886,2]
[339078503,1727209841017,-500.0,0.00021,30]
[339078504,1727209841026,-500.0,0.00021,30]
[339078505,1727209841035,-500.0,0.00021,30]
[339078506,1727209841045,-500.0,0.00021,30]
[339078507,1727209841054,-500.0,0.00021,30]
[339078508,1727209841063,-500.0,0.00021,30]
[339078509,1727209841073,-500.0,0.00021,30]
[339078510,1727209841085,-923.50062393,0.00021,30]
[339078511,1727209841096,-500.0,0.00021,30]
[339078512,1727209841106,-500.0,0.00021,30]
[339078513,1727209841119,-500.0,0.00021,30]
[339078514,1727209841130,-503.93301184,0.00021,30]
[339078515,1727209841141,-500.0,0.00021,30]
[339078516,1727209841150,-500.0,0.00021,30]
[339078517,1727209841159,-500.0,0.00021,30]
[339078518,1727209841169,-500.0,0.00021,30]
[339078519,1727209841178,-500.0,0.00021,30]
[339078520,1727209841187,-500.0,0.00021,30]
[339078521,1727209841196,-500.0,0.00021,30]
[339078522,1727209841205,-500.0,0.00021,30]
[339078523,1727209841214,-607.7783795,0.00021,30]
[339078524,1727209841223,-500.0,0.00021,30]
[339078525,1727209841233,-500.0,0.00021,30]
[339078526,1727209841242,-500.0,0.00021,30]
[339078527,1727209841251,-500.0,0.00021,30]
[339078528,1727209841260,-500.0,0.00021,30]
[339078529,1727209841270,-500.0,0.00021,30]
[339078530,1727209841279,-764.65191428,0.00021105,2]
[339078531,1727209841288,-70873.63797692,0.00021128,2]
[339078532,1727209841297,-657.897999,0.00021128,2]
[339078533,1727209841306,-903.1987415,0.00021185,2]
[339078534,1727209841315,-195.58333689,0.00021198,2]
[339078535,1727209841324,-1000.0,0.00021198,2]
[339078536,1727209841334,-1152.0,0.00021273,2]
[339078537,1727209841349,-736.41612577,0.00021402,2]
[339078538,1727209841359,-1500.0,0.00021522,2]
[339078539,1727209841369,-166.666666,0.00021918,2]
[339078540,1727209841378,-170.29459155,0.0002192,7]
[339078541,1727209841387,-170.29459155,0.0002192,7]
[339078542,1727209841397,-170.29459155,0.0002192,7]
[339078543,1727209841406,-170.29459155,0.0002192,7]
[339078544,1727209841416,-170.29459155,0.0002192,7]
[339078545,1727209841425,-170.29459155,0.0002192,7]
[339078546,1727209841434,-170.79,0.0002192,7]
[339078547,1727209841443,-238.48742816,0.0002192,7]
[339078548,1727209841452,-238.48742816,0.0002192,7]
[339078549,1727209841462,-238.48742816,0.0002192,7]
[339078550,1727209841472,-238.48742816,0.0002192,7]
[339078551,1727209841482,-238.48742816,0.0002192,7]
[339078552,1727209841492,-238.48742816,0.0002192,7]
[339078553,1727209841501,-238.48742816,0.0002192,7]
[339078554,1727209841510,-238.48742816,0.0002192,7]
[339078555,1727209841519,-251.0,0.00022,2]
[339078556,1727209841529,-238.48742816,0.00022161,7]
[339078557,1727209841539,-251.0,0.00022192,2]
[339078558,1727209841548,-1500.0,0.000222,2]
[339078559,1727209841558,-238.48742816,0.0002241,7]
[339078560,1727209841568,-166.666666,0.00022431,2]
[339078561,1727209841577,-625.82080629,0.00022472,2]
[339078562,1727209841586,-153.0,0.00022613,2]
[339078563,1727209841596,-153.0,0.00022613,2]
[339078564,1727209841606,-153.0,0.00022613,2]
[339078565,1727209841615,-153.0,0.00022613,2]
[339078566,1727209841624,-153.0,0.00022613,2]
[339078567,1727209841634,-153.0,0.00022613,2]
[339078568,1727209841643,-153.0,0.00022613,2]
[339078569,1727209841652,-153.0,0.00022613,2]
[339078570,1727209841662,-153.0,0.00022613,2]
[339078571,1727209841671,-153.0,0.00022613,2]
[339078572,1727209841681,-153.0,0.00022613,2]
[339078573,1727209841692,-153.0,0.00022613,2]
[339078574,1727209841703,-153.0,0.00022613,2]
[339078575,1727209841715,-153.0,0.00022613,2]
[339078576,1727209841726,-153.0,0.00022613,2]
[339078577,1727209841736,-153.0,0.00022613,2]
[339078578,1727209841838,-153.0,0.00022613,2]
[339078579,1727209841849,-153.0,0.00022613,2]
[339078580,1727209841858,-153.0,0.00022613,2]
[339078581,1727209841868,-153.0,0.00022613,2]
[339078582,1727209841878,-153.0,0.00022613,2]
[339078583,1727209841888,-153.0,0.00022613,2]
[339078584,1727209841897,-153.0,0.00022613,2]
[339078585,1727209841907,-153.0,0.00022613,2]
[339078586,1727209841917,-153.0,0.00022613,2]
[339078587,1727209841927,-153.0,0.00022613,2]
[339078588,1727209841938,-153.0,0.00022613,2]
[339078589,1727209841948,-153.0,0.00022613,2]
[339078590,1727209841958,-153.0,0.00022613,2]
[339078591,1727209841969,-153.0,0.00022613,2]
[339078592,1727209841978,-153.0,0.00022613,2]
[339078593,1727209841987,-153.0,0.00022613,2]
[339078594,1727209841996,-153.0,0.00022613,2]
[339078595,1727209842006,-153.0,0.00022613,2]
[339078596,1727209842015,-153.0,0.00022613,2]
[339078597,1727209842026,-153.0,0.00022613,2]
[339078598,1727209842037,-153.0,0.00022613,2]
[339078599,1727209842048,-153.0,0.00022613,2]
[339078600,1727209842059,-153.0,0.00022613,2]
[339078601,1727209842069,-153.0,0.00022613,2]
[339078602,1727209842080,-153.0,0.00022613,2]
[339078603,1727209842089,-153.0,0.00022613,2]
[339078604,1727209842099,-153.0,0.00022613,2]
[339078605,1727209842108,-153.0,0.00022613,2]
[339078606,1727209842118,-153.0,0.00022613,2]
[339078607,1727209842127,-153.0,0.00022613,2]
[339078608,1727209842137,-153.0,0.00022613,2]
[339078609,1727209842146,-153.0,0.00022613,2]
[339078610,1727209842156,-153.0,0.00022613,2]
[339078611,1727209842165,-153.0,0.00022613,2]
[339078612,1727209842175,-153.0,0.00022613,2]
[339078613,1727209842184,-153.0,0.00022613,2]
[339078614,1727209842194,-153.0,0.00022613,2]
[339078615,1727209842204,-153.0,0.00022613,2]
[339078616,1727209842214,-153.0,0.00022613,2]
[339078617,1727209842223,-153.0,0.00022613,2]
[339078618,1727209842232,-153.0,0.00022613,2]
[339078619,1727209842241,-153.0,0.00022613,2]
[339078620,1727209842251,-153.0,0.00022613,2]
[339078621,1727209842261,-153.0,0.00022613,2]
[339078622,1727209842271,-153.0,0.00022613,2]
[339078623,1727209842280,-153.0,0.00022613,2]
[339078624,1727209842290,-153.0,0.00022613,2]
[339078625,1727209842299,-153.0,0.00022613,2]
[339078626,1727209842309,-153.0,0.00022613,2]
[339078627,1727209842318,-153.0,0.00022613,2]
[339078628,1727209842328,-153.0,0.00022613,2]
[339078629,1727209842339,-153.0,0.00022613,2]
[339078630,1727209842349,-153.0,0.00022613,2]
[339078631,1727209842359,-153.0,0.00022613,2]
[339078632,1727209842369,-153.0,0.00022613,2]
[339078633,1727209842379,-153.0,0.00022613,2]
[339078634,1727209842388,-153.0,0.00022613,2]
[339078635,1727209842398,-153.0,0.00022613,2]
[339078636,1727209842408,-153.0,0.00022613,2]
[339078637,1727209842419,-238.48742816,0.00022659,7]
[339078638,1727209842430,-355.23846113,0.0002282,2]
[339078639,1727209842439,-1613.0,0.0002287,2]
[339078640,1727209842449,-238.48742816,0.00022908,7]
[339078641,1727209842459,-166.666666,0.00022944,2]
[339078642,1727209842468,-251.0,0.00023014,2]
[339078643,1727209842477,-238.48742816,0.00023157,7]
[339078644,1727209842487,-6720.34107369,0.00023159,2]
[339078645,1727209842497,-4568.20562382,0.00023313,2]
[339078646,1727209842507,-6720.34107369,0.00023322,2]
[339078647,1727209842517,-431.0,0.000234,2]
[339078648,1727209842526,-238.48742816,0.00023406,7]
[339078649,1727209842536,-166.666666,0.00023456,2]
[339078650,1727209842545,-2000.0,0.00023497,2]
[339078651,1727209842554,-620.29104031,0.00023596,2]
[339078652,1727209842563,-232.4,0.00023637,2]
[339078653,1727209842573,-238.48742816,0.00023655,7]
[339078654,1727209842583,-6720.34107369,0.00023667,2]
[339078655,1727209842593,-238.48742816,0.00023904,7]
[339078656,1727209842604,-166.666666,0.00023969,2]
[339078657,1727209842614,-6720.34107369,0.00023983,2]
[339078658,1727209842623,-630.0,0.00024,2]
[339078659,1727209842635,-150.112233,0.00024,4]
[339078660,1727209842645,-288.5746376,0.00024,30]
[339078662,1727209842654,-6720.34107369,0.00024137,2]
[339078664,1727209842665,-238.48742816,0.00024153,7]
[339078665,1727209842674,-252.0,0.00024164,2]
[339078667,1727209842684,-630.0,0.000242,2]
[339078669,1727209842693,-630.0,0.000244,2]
[339078671,1727209842704,-238.48742816,0.00024402,7]
[339078673,1727209842714,-166.666666,0.00024482,2]
[339078675,1727209842723,-150.112233,0.000245,3]
[339078677,1727209842734,-232.4,0.00024506,2]
[339078679,1727209842744,-630.0,0.000246,2]
[339078680,1727209842754,-6720.34107369,0.00024619,2]
[339078681,1727209842764,-238.48742816,0.00024651,7]
[339078683,1727209842774,-200.0,0.00024658,2]
[339078684,1727209842784,-380.0,0.00024658,2]
[339078685,1727209842794,-200.0,0.00024658,15]
[339078686,1727209842806,-6720.34107369,0.00024736,2]
[339078687,1727209842817,-620.01455202,0.00024776,2]
[339078688,1727209842827,-630.0,0.000248,2]
[339078689,1727209842836,-150.0,0.00024883,2]
[339078690,1727209842846,-238.98,0.000249,7]
[339078692,1727209842863,-555.0,0.00024932,2]
[339078693,1727209842873,-226.0,0.00024932,2]
[339078694,1727209842882,-6786.99533098,0.00024997,2]
[339078696,1727209842891,-500.0,0.00025,30]
[339078699,1727209842901,-500.0,0.00025,30]
[339078701,1727209842910,-500.0,0.00025,30]
[339078703,1727209842920,-500.0,0.00025,30]
[339078704,1727209842930,-500.0,0.00025,30]
[339078705,1727209842939,-500.0,0.00025,30]
[339078707,1727209842949,-500.0,0.00025,30]
[339078709,1727209842959,-500.0,0.00025,30]
[339078711,1727209842969,-500.0,0.00025,30]
[339078713,1727209842978,-500.0,0.00025,30]
[339078714,1727209842988,-500.0,0.00025,30]
[339078716,1727209842997,-500.0,0.00025,30]
[339078718,1727209843007,-500.0,0.00025,30]
[339078720,1727209843016,-500.0,0.00025,30]
[339078721,1727209843026,-500.0,0.00025,30]
[339078723,1727209843036,-500.0,0.00025,30]
[339078725,1727209843046,-500.0,0.00025,30]
[339078726,1727209843057,-500.0,0.00025,30]
[339078727,1727209843070,-500.0,0.00025,30]
[339078728,1727209843079,-500.0,0.00025,30]
[339078729,1727209843088,-500.0,0.00025,30]
[339078730,1727209843097,-500.0,0.00025,30]
[339078731,1727209843107,-500.0,0.00025,30]
[339078732,1727209843117,-500.0,0.00025,30]
[339078734,1727209843126,-500.0,0.00025,30]
[339078735,1727209843135,-500.0,0.00025,30]
[339078736,1727209843144,-500.0,0.00025,30]
[339078737,1727209843153,-500.0,0.00025,30]
[339078738,1727209843162,-630.0,0.00025,2]
[339078739,1727209843172,-555.0,0.00025,2]
[339078740,1727209843181,-226.0,0.00025,2]
[339078741,1727209843190,-164.49344774,0.00025,2]
[339078742,1727209843200,-32392.71557305,0.00025,2]
[339078744,1727209843373,-12007.95920865,0.00025,2]
[339078745,1727209843385,-12172.29091943,0.00025,2]
[339078746,1727209843394,-202.1167154,0.00025,2]
[339078747,1727209843403,-10364.0,0.00025,2]
[339078748,1727209843413,-344.4458257,0.00025,2]
[339078749,1727209843423,-822.5140414,0.00025,2]
[339078750,1727209843432,-200.0,0.00025,2]
[339078751,1727209843441,-2500.0,0.00025034,2]
[339078752,1727209843451,-2258.0,0.00025042,2]
[339078753,1727209843461,-154.79661188,0.00025072,2]
[339078754,1727209843470,-234781.27565569,0.0002509,2]
[339078755,1727209844696,-334.0510005,0.00014573,2]
[339078756,1727209844708,-165.9489995,0.00014573,2]
[339078757,1727209844718,-500.0,0.00014573,2]
[339078758,1727209844727,-1000.0,0.00015121,2]
[339078759,1727209844736,-8.7193639,0.00016122,2]
[339078760,1727209844748,-885.78455209,0.00016122,2]
[339078767,1727209846224,-381.92818453,0.0001453,2]
[339078769,1727209856706,951.0,0.00025,120]
[339078773,1727210074470,-190.984547,0.00017573,2]
[339078774,1727210074626,-300.0,0.00020747,2]
[339078775,1727210074654,-300.0,0.00020747,2]
[339078776,1727210074681,-500.0,0.00020748,2]
[339078777,1727210074708,-500.0,0.00020748,2]
[339078778,1727210074734,-458.061104,0.00020748,2]
[339078779,1727210074762,-500.0,0.00020748,2]
[339078780,1727210074789,-500.0,0.00020748,2]
[339078781,1727210074815,-500.0,0.00020748,2]
[339078782,1727210074843,-500.0,0.00020748,2]
[339078783,1727210074869,-500.0,0.00020748,2]
[339078784,1727210074894,-500.0,0.00020748,2]
[339078785,1727210074922,-500.0,0.00020748,2]
[339078786,1727210074949,-500.0,0.00020748,2]
[339078787,1727210074976,-500.0,0.00020748,2]
[339078788,1727210075002,-500.0,0.00020748,2]
[339078789,1727210075028,-500.0,0.00020748,2]
[339078790,1727210075052,-500.0,0.00020748,2]
[339078791,1727210075077,-500.0,0.00020748,2]
[339078792,1727210075103,-500.0,0.00020748,2]
[339078793,1727210075128,-500.0,0.00020748,2]
[339078794,1727210075153,-500.0,0.00020748,2]
[339078795,1727210075177,-13651.954349,0.00020749,2]
[339078801,1727210804152,-160.113729,0.00019178,2]
[339078802,1727210804177,-409.10959004,0.00019776,2]
[339078804,1727210853720,337.26787648,0.0001,2]
[339078851,1727211032356,-300.0,0.00018966,2]
[339078853,1727211032365,-300.0,0.00018966,2]
[339078855,1727211032376,-3841.60395833,0.00018967,2]
[339078861,1727211032407,-7344.83829889,0.00018967,2]
[339079013,1727211038561,-500.0,0.00018966,2]
[339079015,1727211038570,-500.0,0.00018966,2]
[339079016,1727211038579,-500.0,0.00018966,2]
[339079017,1727211038589,-500.0,0.00018966,2]
[339079018,1727211038598,-500.0,0.00018966,2]
[339079019,1727211038607,-500.0,0.00018966,2]
[339079020,1727211038616,-500.0,0.00018966,2]
[339079021,1727211038626,-500.0,0.00018966,2]
[339079022,1727211038637,-500.0,0.00018966,2]
[339079023,1727211038648,-500.0,0.00018966,2]
[339079024,1727211038659,-500.0,0.00018966,2]
[339079025,1727211038671,-560.04022406,0.00018966,2]
[339079026,1727211038680,-500.0,0.00018966,2]
[339079027,1727211038689,-13713.55774278,0.00018967,2]
[339079028,1727211038704,-250.0,0.00019254,2]
[339079029,1727211038713,-250.0,0.00019307,2]
[339079030,1727211038722,-250.0,0.0001936,2]
[339079031,1727211038731,-250.0,0.00019412,2]
[339079032,1727211038742,-250.0,0.00019465,2]
[339079033,1727211038751,-250.0,0.00019518,2]
[339079034,1727211038760,-250.0,0.00019571,2]
[339079035,1727211038771,-250.0,0.00019624,2]
[339079036,1727211038780,-250.0,0.00019676,2]
[339079037,1727211038789,-250.0,0.00019729,2]
[339079038,1727211038799,-6955.67287089,0.00019753,2]
[339079039,1727211038808,-250.0,0.00019782,2]
[339079040,1727211038818,-250.0,0.00019835,2]
[339079041,1727211038828,-250.0,0.00019888,2]
[339079042,1727211038838,-250.0,0.0001994,2]
[339079043,1727211038847,-250.0,0.00019993,2]
[339079044,1727211038857,-1796.69976,0.0002,2]
[339079045,1727211038866,-250.0,0.00020046,2]
[339079046,1727211038876,-250.0,0.00020099,2]
[339079047,1727211038885,-6955.67287089,0.00020141,2]
[339079048,1727211038895,-250.0,0.00020152,2]
[339079049,1727211038904,-250.0,0.00020204,2]
[339079050,1727211038913,-250.0,0.00020257,2]
[339079051,1727211038922,-6955.67287089,0.00020334,2]
[339079052,1727211038931,-1155.24902266,0.00020647,2]
[339079053,1727211038944,-2732.45383361,0.00020648,2]
[339079054,1727211038953,-420.0,0.00020673,2]
[339079055,1727211038963,-6955.67287089,0.00020755,2]
[339079056,1727211038972,-420.0,0.00020862,2]
[339079057,1727211038981,-6955.67287089,0.00020904,2]
[339079058,1727211038990,-500.0,0.00020999,2]
[339079059,1727211038999,-518.56946044,0.00020999,2]
[339079060,1727211039009,-500.0,0.00020999,2]
[339079061,1727211039028,-199.79725377,0.00020999,2]
[339079062,1727211039038,-500.0,0.00020999,2]
[339079063,1727211039048,-500.0,0.00020999,2]
[339079064,1727211039058,-500.0,0.00020999,2]
[339079065,1727211039068,-349.7957057,0.00020999,2]
[339079066,1727211039078,-500.0,0.00020999,2]
[339079067,1727211039088,-500.0,0.00020999,2]
[339079068,1727211039099,-500.0,0.00020999,2]
[339079069,1727211039108,-500.0,0.00020999,2]
[339079070,1727211039119,-500.0,0.00020999,2]
[339079071,1727211039129,-500.0,0.00021,30]
[339079072,1727211039139,-500.0,0.00021,30]
[339079073,1727211039149,-500.0,0.00021,30]
[339079074,1727211039160,-500.0,0.00021,30]
[339079075,1727211039170,-500.0,0.00021,30]
[339079076,1727211039180,-500.0,0.00021,30]
[339079077,1727211039191,-500.0,0.00021,30]
[339079078,1727211039200,-500.0,0.00021,30]
[339079079,1727211039210,-500.0,0.00021,30]
[339079080,1727211039220,-500.0,0.00021,30]
[339079081,1727211039231,-500.0,0.00021,30]
[339079082,1727211039240,-2080.25901,0.00021,2]
[339079083,1727211039251,-500.0,0.00021,30]
[339079084,1727211039260,-500.0,0.00021,30]
[339079085,1727211039269,-500.0,0.00021,30]
[339079086,1727211039279,-866.02053318,0.00021,30]
[339079087,1727211039289,-500.0,0.00021,30]
[339079088,1727211039299,-945.32536578,0.00021,30]
[339079089,1727211039309,-500.0,0.00021,30]
[339079090,1727211039319,-500.0,0.00021,30]
[339079091,1727211039329,-500.0,0.00021,30]
[339079092,1727211039339,-500.0,0.00021,30]
[339079093,1727211039349,-500.0,0.00021,30]
[339079094,1727211039359,-500.0,0.00021,30]
[339079095,1727211039370,-767.1185168,0.00021,30]
[339079096,1727211039381,-569.41728008,0.00021,30]
[339079097,1727211039391,-240.87,0.00021118,3]
[339079098,1727211039403,-151.0,0.00021128,2]
[339079099,1727211039414,-231.720744,0.00021128,2]
[339079100,1727211039425,-231.720744,0.00021128,2]
[339079101,1727211039436,-461.613163,0.00021128,2]
[339079102,1727211039450,-461.613163,0.00021128,2]
[339079103,1727211039461,-207.73657,0.00021128,2]
[339079104,1727211039470,-207.73657,0.00021128,2]
[339079105,1727211039480,-259.848921,0.00021128,2]
[339079106,1727211039490,-259.848921,0.00021128,2]
[339079107,1727211039499,-151.0,0.00021128,2]
[339079108,1727211039509,-328.59027,0.00021128,2]
[339079109,1727211039519,-328.59027,0.00021128,2]
[339079110,1727211039528,-1454.540924,0.00021128,2]
[339079111,1727211039538,-151.0,0.00021128,2]
[339079112,1727211039680,-280.503852,0.00021128,2]
[339079113,1727211039690,-226.5,0.00021128,2]
[339079114,1727211039703,-226.5,0.00021128,2]
[339079115,1727211039712,-151.0,0.00021128,2]
[339079116,1727211039722,-151.0,0.00021128,2]
[339079117,1727211039733,-6955.67287089,0.00021156,2]
[339079118,1727211039743,-63224.5971386,0.00021357,3]
[339079119,1727211039752,-85631.9604609,0.00021357,3]
[339079120,1727211039763,-6955.67287089,0.00021399,2]
[339079121,1727211039773,-1084.05221127,0.00021708,2]
[339079122,1727211039782,-6955.67287089,0.00021868,2]
[339079123,1727211039792,-166.666666,0.00021918,2]
[339079124,1727211039802,-163.78268469,0.00021918,2]
[339079125,1727211039812,-6955.67287089,0.00021957,2]
[339079126,1727211039821,-150.112233,0.00022,4]
[339079127,1727211039831,-150.112233,0.000222,4]
[339079128,1727211039841,-1000.0,0.0002225,2]
[339079129,1727211039850,-386.93529316,0.0002226,2]
[339079130,1727211039860,-6955.67287089,0.00022282,2]
[339079131,1727211039870,-63224.5971386,0.0002235,3]
[339079132,1727211039880,-85631.9604609,0.0002235,3]
[339079133,1727211039889,-153.0,0.0002236,2]
[339079134,1727211039899,-153.0,0.0002236,2]
[339079135,1727211039910,-153.0,0.0002236,2]
[339079136,1727211039921,-223.0,0.0002236,2]
[339079137,1727211039932,-223.0,0.0002236,2]
[339079138,1727211039946,-223.0,0.0002236,2]
[339079139,1727211039955,-223.0,0.0002236,2]
[339079141,1727211039965,-223.0,0.0002236,2]
[339079143,1727211039975,-223.0,0.0002236,2]
[339079145,1727211039984,-153.0,0.0002236,2]
[339079147,1727211039994,-153.0,0.0002236,2]
[339079149,1727211040003,-153.0,0.0002236,2]
[339079152,1727211040013,-153.0,0.0002236,2]
[339079154,1727211040022,-153.0,0.0002236,2]
[339079156,1727211040031,-153.0,0.0002236,2]
[339079157,1727211040040,-153.0,0.0002236,2]
[339079159,1727211040050,-153.0,0.0002236,2]
[339079160,1727211040059,-153.0,0.0002236,2]
[339079162,1727211040069,-137.77661374,0.0002236,2]
[339079164,1727211040083,-15.22338626,0.0002236,2]
[339079165,1727211040093,-153.0,0.0002236,2]
[339079166,1727211040104,-153.0,0.0002236,2]
[339079167,1727211040114,-244.0,0.0002236,2]
[339079169,1727211040125,-159.9770152,0.0002236,2]
[339079182,1727211040833,-84.0229848,0.0002236,2]
[339079183,1727211040843,-244.0,0.0002236,2]
[339079184,1727211040852,-244.0,0.0002236,2]
[339079185,1727211040861,-244.0,0.0002236,2]
[339079186,1727211040870,-244.0,0.0002236,2]
[339079187,1727211040879,-244.0,0.0002236,2]
[339079188,1727211040888,-244.0,0.0002236,2]
[339079189,1727211040897,-244.0,0.0002236,2]
[339079190,1727211040906,-244.0,0.0002236,2]
[339079191,1727211040916,-244.0,0.0002236,2]
[339079192,1727211040925,-244.0,0.0002236,2]
[339079193,1727211040934,-244.0,0.0002236,2]
[339079194,1727211040944,-244.0,0.0002236,2]
[339079195,1727211040953,-244.0,0.0002236,2]
[339079196,1727211040962,-244.0,0.0002236,2]
[339079197,1727211040971,-244.0,0.0002236,2]
[339079198,1727211040981,-244.0,0.0002236,2]
[339079199,1727211040990,-244.0,0.0002236,2]
[339079200,1727211041000,-244.0,0.0002236,2]
[339079201,1727211041009,-244.0,0.0002236,2]
[339079202,1727211041018,-244.0,0.0002236,2]
[339079203,1727211041027,-153.0,0.0002236,2]
[339079204,1727211041037,-153.0,0.0002236,2]
[339079205,1727211041046,-153.0,0.0002236,2]
[339079206,1727211041055,-153.0,0.0002236,2]
[339079207,1727211041064,-153.0,0.0002236,2]
[339079208,1727211041073,-153.0,0.0002236,2]
[339079209,1727211041083,-153.0,0.0002236,2]
[339079210,1727211041183,-153.0,0.0002236,2]
[339079211,1727211041194,-153.0,0.0002236,2]
[339079212,1727211041203,-153.0,0.0002236,2]
[339079213,1727211041212,-153.0,0.0002236,2]
[339079214,1727211041222,-153.0,0.0002236,2]
[339079215,1727211041232,-153.0,0.0002236,2]
[339079216,1727211041243,-153.0,0.0002236,2]
[339079217,1727211041252,-153.0,0.0002236,2]
[339079218,1727211041262,-153.0,0.0002236,2]
[339079219,1727211041271,-153.0,0.0002236,2]
[339079220,1727211041280,-326.0,0.0002236,2]
[339079221,1727211041289,-326.0,0.0002236,2]
[339079222,1727211041298,-326.0,0.0002236,2]
[339079223,1727211041307,-326.0,0.0002236,2]
[339079224,1727211041318,-326.0,0.0002236,2]
[339079225,1727211041329,-326.0,0.0002236,2]
[339079226,1727211041339,-326.0,0.0002236,2]
[339079227,1727211041349,-326.0,0.0002236,2]
[339079228,1727211041359,-326.0,0.0002236,2]
[339079229,1727211041368,-326.0,0.0002236,2]
[339079230,1727211041379,-326.0,0.0002236,2]
[339079231,1727211041388,-326.0,0.0002236,2]
[339079232,1727211041397,-326.0,0.0002236,2]
[339079233,1727211041408,-326.0,0.0002236,2]
[339079234,1727211041419,-326.0,0.0002236,2]
[339079235,1727211041429,-326.0,0.0002236,2]
[339079236,1727211041441,-326.0,0.0002236,2]
[339079237,1727211041452,-326.0,0.0002236,2]
[339079238,1727211041463,-326.0,0.0002236,2]
[339079239,1727211041472,-326.0,0.0002236,2]
[339079240,1727211041481,-326.0,0.0002236,2]
[339079241,1727211041490,-153.0,0.0002236,2]
[339079242,1727211041500,-153.0,0.0002236,2]
[339079243,1727211041508,-153.0,0.0002236,2]
[339079244,1727211041518,-153.0,0.0002236,2]
[339079245,1727211041527,-153.0,0.0002236,2]
[339079246,1727211041537,-153.0,0.0002236,2]
[339079247,1727211041546,-153.0,0.0002236,2]
[339079248,1727211041555,-153.0,0.0002236,2]
[339079249,1727211041566,-153.0,0.0002236,2]
[339079250,1727211041576,-153.0,0.0002236,2]
[339079251,1727211041586,-153.0,0.0002236,2]
[339079252,1727211041597,-153.0,0.0002236,2]
[339079253,1727211041606,-153.0,0.0002236,2]
[339079254,1727211041616,-153.0,0.0002236,2]
[339079255,1727211041627,-153.0,0.0002236,2]
[339079256,1727211041636,-153.0,0.0002236,2]
[339079257,1727211041647,-153.0,0.0002236,2]
[339079258,1727211041658,-153.0,0.0002236,2]
[339079259,1727211041668,-153.0,0.0002236,2]
[339079260,1727211041679,-153.0,0.0002236,2]
[339079261,1727211041688,-153.0,0.0002236,2]
[339079262,1727211041701,-372.0,0.0002236,2]
[339079263,1727211041710,-372.0,0.0002236,2]
[339079264,1727211041719,-372.0,0.0002236,2]
[339079265,1727211041728,-372.0,0.0002236,2]